bitfinex/quotes_BTCUSD_20260311
["timestamp","ask_amount","ask_price","bid_price","bid_amount"]
[1773266608302,0.07067937,70742.0,70726.0,0.07089531]
[1773266608494,0.01852504,70741.0,70726.0,0.07089531]
[1773266609058,0.01834486,70741.0,70726.0,0.07089531]
[1773266609683,0.01834486,70741.0,70726.0,0.07094769]
[1773266609877,0.01816466,70741.0,70726.0,0.07094769]
[1773266610322,0.08866498,70741.0,70726.0,0.07094769]
[1773266610556,0.01852504,70742.0,70726.0,0.07094769]
[1773266612749,0.01852504,70741.0,70726.0,0.07094769]
[1773266614043,0.01852504,70741.0,70727.0,0.01842043]
[1773266615126,0.001,70741.0,70728.0,0.08911379]
[1773266615547,0.14095128,70742.0,70728.0,0.08911379]
[1773266615752,0.01852504,70742.0,70728.0,0.08911379]
[1773266616153,0.0892047,70742.0,70728.0,0.08911379]
[1773266616349,0.23015598,70742.0,70728.0,0.08911379]
[1773266617341,0.14095128,70741.0,70728.0,0.08911379]
[1773266617537,0.14119947,70740.0,70728.0,0.08911379]
[1773266617760,0.14119947,70741.0,70728.0,0.08911379]
[1773266617964,0.14119947,70740.0,70728.0,0.08911379]
[1773266618162,0.14119947,70741.0,70728.0,0.08911379]
[1773266618358,0.14119947,70740.0,70728.0,0.08911379]
[1773266618575,0.14119947,70739.0,70728.0,0.08911379]
[1773266618779,0.14119947,70738.0,70728.0,0.08911379]
[1773266618981,0.14119947,70741.0,70728.0,0.08911379]
[1773266619220,0.14119947,70740.0,70728.0,0.08911379]
[1773266619400,0.14119947,70739.0,70728.0,0.08911379]
[1773266619603,0.14119947,70738.0,70728.0,0.08911379]
[1773266619873,0.14119947,70737.0,70728.0,0.08911379]
[1773266620070,0.14119947,70740.0,70728.0,0.08911379]
[1773266620309,0.14119947,70739.0,70728.0,0.08911379]
[1773266620492,0.14119947,70738.0,70728.0,0.08911379]
[1773266620694,0.14119947,70737.0,70728.0,0.08911379]
[1773266620992,0.14119947,70740.0,70728.0,0.08911379]
[1773266621191,0.14119947,70739.0,70728.0,0.08911379]
[1773266621530,0.14119947,70738.0,70728.0,0.08911379]
[1773266621839,0.14119947,70737.0,70728.0,0.07069336]
[1773266621994,0.14119947,70740.0,70727.0,0.07069397]
[1773266622199,0.14119947,70739.0,70727.0,0.07069397]
[1773266622541,0.14119947,70738.0,70727.0,0.07069397]
[1773266622739,0.14119947,70737.0,70727.0,0.07069397]
[1773266623035,0.14119947,70740.0,70727.0,0.07069397]
[1773266623234,0.14119947,70739.0,70727.0,0.07069397]
[1773266623537,0.14119947,70738.0,70727.0,0.07069397]
[1773266623710,0.14119947,70737.0,70727.0,0.08802009]
[1773266623919,0.14119947,70740.0,70727.0,0.08802009]
[1773266624125,0.14119947,70739.0,70727.0,0.08802009]
[1773266624343,0.14119947,70738.0,70727.0,0.08802009]
[1773266624524,0.14119947,70737.0,70727.0,0.08802009]
[1773266624732,0.25384656,70740.0,70726.0,0.07094743]
[1773266624950,0.15950934,70739.0,70726.0,0.07094743]
[1773266625284,0.14119947,70738.0,70726.0,0.07094743]
[1773266625466,0.14119947,70737.0,70726.0,0.07094743]
[1773266625768,0.14119947,70738.0,70726.0,0.08827355]
[1773266625970,0.14119947,70737.0,70726.0,0.08827355]
[1773266626170,0.14119947,70738.0,70726.0,0.08827355]
[1773266626315,0.14119947,70737.0,70726.0,0.08827355]
[1773266626515,0.14119947,70738.0,70726.0,0.08827355]
[1773266626844,0.14119947,70737.0,70726.0,0.08827355]
[1773266627045,0.14119947,70738.0,70726.0,0.08827355]
[1773266627270,0.14119947,70737.0,70726.0,0.08827355]
[1773266627569,0.14119947,70738.0,70726.0,0.08827355]
[1773266627769,0.14119947,70737.0,70726.0,0.08827355]
[1773266627998,0.01830987,70739.0,70726.0,0.08827355]
[1773266627999,0.14119947,70738.0,70726.0,0.08827355]
[1773266628167,0.14119947,70737.0,70726.0,0.08827355]
[1773266628387,0.14119947,70738.0,70726.0,0.08827355]
[1773266628595,0.14119947,70737.0,70726.0,0.08827355]
[1773266628794,0.14119947,70738.0,70726.0,0.08827355]
[1773266629009,0.14119947,70737.0,70726.0,0.08827355]
[1773266629198,0.14119947,70738.0,70726.0,0.08827355]
[1773266629398,0.14119947,70737.0,70726.0,0.08827355]
[1773266629617,0.14119947,70738.0,70726.0,0.08827355]
[1773266629764,0.14119947,70737.0,70726.0,0.08827355]
[1773266629964,0.14119947,70738.0,70726.0,0.08827355]
[1773266630205,0.14119947,70737.0,70726.0,0.08827355]
[1773266630384,0.14119947,70738.0,70726.0,0.08827355]
[1773266630581,0.14119947,70737.0,70726.0,0.08827355]
[1773266630766,0.14119947,70738.0,70726.0,0.08827355]
[1773266630966,0.14119947,70737.0,70726.0,0.08827355]
[1773266631173,0.14119947,70738.0,70726.0,0.08827355]
[1773266631365,0.14119947,70737.0,70726.0,0.08827355]
[1773266631571,0.14119947,70738.0,70726.0,0.08827355]
[1773266631756,0.14119947,70737.0,70726.0,0.08827355]
[1773266631954,0.14119947,70738.0,70726.0,0.08827355]
[1773266632293,0.14119947,70737.0,70726.0,0.08827355]
[1773266632630,0.14119947,70738.0,70726.0,0.08827355]
[1773266632810,0.14119947,70737.0,70726.0,0.08827355]
[1773266633015,0.14119947,70738.0,70726.0,0.08827355]
[1773266633168,0.01830987,70739.0,70726.0,0.08827355]
[1773266633169,0.14119947,70737.0,70726.0,0.08827355]
[1773266633375,0.14119947,70738.0,70726.0,0.08827355]
[1773266633579,0.14119947,70737.0,70726.0,0.08827355]
[1773266633776,0.14119947,70738.0,70726.0,0.08827355]
[1773266633977,0.14119947,70737.0,70726.0,0.08827355]
[1773266634222,0.01830987,70739.0,70726.0,0.08827355]
[1773266634501,0.14139295,70738.0,70726.0,0.08827355]
[1773266634698,0.14139295,70737.0,70726.0,0.08827355]
[1773266634933,0.01830987,70739.0,70726.0,0.08827355]
[1773266635066,0.14139292,70738.0,70726.0,0.08827355]
[1773266635280,0.14139292,70737.0,70726.0,0.08827355]
[1773266635600,0.01830987,70739.0,70726.0,0.08827355]
[1773266635798,0.14139345,70738.0,70726.0,0.08827355]
[1773266635976,0.14139345,70737.0,70726.0,0.08827355]
[1773266636200,0.01830987,70739.0,70726.0,0.08827355]
[1773266636498,0.1413932,70738.0,70726.0,0.08827355]
[1773266636695,0.1413932,70737.0,70726.0,0.08827355]
[1773266636874,0.01830987,70739.0,70726.0,0.08827355]
[1773266637078,0.14139316,70738.0,70726.0,0.08827355]
[1773266637269,0.14139316,70737.0,70726.0,0.08827355]
[1773266637472,0.01830987,70739.0,70726.0,0.08827355]
[1773266637671,0.14139268,70738.0,70726.0,0.08827355]
[1773266637909,0.14139268,70737.0,70726.0,0.08827355]
[1773266638112,0.01830987,70739.0,70726.0,0.08827355]
[1773266638311,0.14139231,70738.0,70726.0,0.08827355]
[1773266638574,0.14139231,70737.0,70726.0,0.08827355]
[1773266638791,0.01830987,70739.0,70726.0,0.08827355]
[1773266638985,0.14139227,70738.0,70726.0,0.08827355]
[1773266639215,0.14139227,70737.0,70726.0,0.08827355]
[1773266639445,0.01830987,70739.0,70726.0,0.08827355]
[1773266639647,0.14139172,70738.0,70726.0,0.08827355]
[1773266639819,0.14139172,70737.0,70726.0,0.08827355]
[1773266640008,0.01830987,70739.0,70726.0,0.08827355]
[1773266640210,0.14139179,70738.0,70726.0,0.08827355]
[1773266640410,0.14139179,70737.0,70726.0,0.08827355]
[1773266640616,0.01830987,70739.0,70726.0,0.08827355]
[1773266640784,0.14139166,70738.0,70726.0,0.08827355]
[1773266641130,0.14139166,70737.0,70726.0,0.08827355]
[1773266641331,0.01830987,70739.0,70726.0,0.08827355]
[1773266641475,0.1413914,70738.0,70726.0,0.08827355]
[1773266641687,0.1413914,70737.0,70726.0,0.08827355]
[1773266641908,0.01830987,70739.0,70726.0,0.08827355]
[1773266642110,0.14139151,70738.0,70726.0,0.08827355]
[1773266642348,0.14139151,70737.0,70726.0,0.08827355]
[1773266642534,0.01830987,70739.0,70726.0,0.08827355]
[1773266642747,0.14139096,70738.0,70726.0,0.08827355]
[1773266642940,0.14139096,70737.0,70726.0,0.08827355]
[1773266643149,0.01830987,70739.0,70726.0,0.08827355]
[1773266643465,0.14139072,70738.0,70726.0,0.08827355]
[1773266643789,0.14139072,70737.0,70726.0,0.08827355]
[1773266643971,0.01830987,70739.0,70726.0,0.08827355]
[1773266644273,0.14139069,70738.0,70726.0,0.08827355]
[1773266644470,0.14139069,70737.0,70726.0,0.08827355]
[1773266644650,0.01830987,70739.0,70726.0,0.08827355]
[1773266644851,0.01830987,70739.0,70711.0,0.0003746]
[1773266644852,0.07068289,70739.0,70720.0,0.07070135]
[1773266645052,0.07068289,70739.0,70722.0,0.00144]
[1773266645053,0.01829462,70738.0,70722.0,0.00144]
[1773266645464,0.01829462,70738.0,70719.0,0.07070189]
[1773266645672,0.01829462,70736.0,70721.0,0.07070035]
[1773266645849,0.01973462,70736.0,70721.0,0.07070035]
[1773266646459,0.14140189,70735.0,70721.0,0.07070035]
[1773266646654,0.15969651,70735.0,70721.0,0.07070035]
[1773266646872,0.14140065,70734.0,70721.0,0.07070035]
[1773266647281,0.01829462,70734.0,70721.0,0.07070035]
[1773266647640,0.14140099,70733.0,70721.0,0.07070035]
[1773266647836,0.14140099,70733.0,70720.0,0.00144]
[1773266647837,0.14140099,70732.0,70720.0,0.00144]
[1773266648040,0.01829462,70730.0,70721.0,0.00144]
[1773266648867,0.01829462,70730.0,70720.0,0.00144]
[1773266649322,0.01829462,70730.0,70718.0,0.07090147]
[1773266649512,0.01829462,70730.0,70721.0,0.00144]
[1773266649710,0.01829462,70730.0,70721.0,0.0707001]
[1773266649914,0.01829462,70730.0,70721.0,0.0721401]
[1773266650083,0.01829462,70729.0,70716.0,0.00035343]
[1773266650677,0.01829462,70729.0,70717.0,0.00144]
[1773266651892,0.01829462,70729.0,70718.0,0.07070335]
[1773266652093,0.00144,70730.0,70718.0,0.07070335]
[1773266652721,0.00144,70730.0,70721.0,0.0002]
[1773266660710,0.00144,70730.0,70721.0,0.01689226]
[1773266661736,0.14117744,70735.0,70722.0,0.01669226]
[1773266661952,0.14117744,70738.0,70724.0,0.01669226]
[1773266662159,0.00032987,70739.0,70724.0,0.01669226]
[1773266662359,0.00032987,70739.0,70726.0,0.01669226]
[1773266662762,0.00144,70744.0,70730.0,0.01669226]
[1773266662763,0.1411232,70744.0,70730.0,0.01669226]
[1773266663120,0.00022001,70749.0,70732.0,0.01669226]
[1773266664455,0.00022001,70749.0,70734.0,0.01669226]
[1773266666402,0.00022001,70749.0,70735.0,0.07068636]
[1773266666600,0.00022001,70749.0,70736.0,0.01669226]
[1773266666802,0.00022001,70749.0,70738.0,0.01669226]
[1773266667519,0.07089242,70749.0,70738.0,0.01669226]
[1773266668315,0.08803083,70749.0,70737.0,0.00144]
[1773266669210,0.00022001,70749.0,70738.0,0.07068336]
[1773266669420,0.00022001,70749.0,70738.0,0.08737562]
[1773266669619,0.00022001,70749.0,70739.0,0.01669226]
[1773266670791,0.00022001,70749.0,70740.0,0.07068136]
[1773266671400,0.00022001,70749.0,70739.0,0.08737393]
[1773266672462,0.00022001,70749.0,70739.0,0.07068167]
[1773266672673,0.00022001,70749.0,70740.0,0.01669226]
[1773266672921,0.00022001,70749.0,70742.0,0.01669226]
[1773266673682,0.00035335,70751.0,70742.0,0.01669226]
[1773266673889,0.00022001,70762.0,70742.0,0.01669226]
[1773266674334,0.00022001,70762.0,70744.0,0.01669226]
[1773266674945,0.00022001,70762.0,70746.0,0.01669226]
[1773266675149,0.05081716,70768.0,70745.0,0.07067637]
[1773266675150,0.11289856,70772.0,70751.0,0.01669226]
[1773266675316,0.11289856,70772.0,70750.0,0.04200608]
[1773266675317,0.0001746,70774.0,70761.0,0.01669226]
[1773266675516,0.0001746,70774.0,70751.0,0.01669226]
[1773266675517,0.01713841,70773.0,70751.0,0.01669226]
[1773266675758,0.01713841,70773.0,70753.0,0.01669226]
[1773266675914,0.07082231,70774.0,70755.0,0.01669226]
[1773266676115,0.07082231,70774.0,70757.0,0.01669226]
[1773266676546,0.04200608,70770.0,70754.0,0.00144]
[1773266676783,0.07119355,70774.0,70752.0,0.00144]
[1773266676784,0.01713841,70768.0,70752.0,0.00144]
[1773266676995,0.01713841,70767.0,70752.0,0.01813226]
[1773266677197,0.00037124,70774.0,70753.0,0.01669226]
[1773266677422,0.01857841,70773.0,70753.0,0.01669226]
[1773266677643,0.01879842,70773.0,70753.0,0.01669226]
[1773266678735,0.01713841,70768.0,70749.0,0.00144]
[1773266678906,0.0706544,70767.0,70749.0,0.00144]
[1773266679101,0.01713841,70765.0,70749.0,0.00144]
[1773266679415,0.01713841,70765.0,70748.0,0.07211318]
[1773266679650,0.07086939,70773.0,70751.0,0.01669226]
[1773266679890,0.00144,70769.0,70751.0,0.01669226]
[1773266680046,0.00179326,70769.0,70751.0,0.01669226]
[1773266680450,0.00035326,70769.0,70751.0,0.01669226]
[1773266681089,0.00035326,70769.0,70753.0,0.01610957]
[1773266681403,0.00035326,70769.0,70755.0,0.01610957]
[1773266683098,0.00035326,70769.0,70756.0,0.07066538]
[1773266683401,0.00035326,70769.0,70757.0,0.01610957]
[1773266685174,0.00035326,70769.0,70759.0,0.01610957]
[1773266685602,0.00035326,70769.0,70758.0,0.07066338]
[1773266685979,0.00057327,70769.0,70758.0,0.07066338]
[1773266686369,0.01663221,70766.0,70753.0,0.00144]
[1773266686573,0.01663221,70766.0,70746.0,0.01610957]
[1773266686574,0.01663221,70764.0,70746.0,0.00144]
[1773266686792,0.00057327,70769.0,70750.0,0.04200608]
[1773266687025,0.00144,70768.0,70751.0,0.01610957]
[1773266687322,0.00144,70768.0,70753.0,0.01610957]
[1773266687528,0.00057327,70769.0,70753.0,0.01610957]
[1773266688206,0.00057327,70769.0,70760.0,0.01610957]
[1773266688405,0.00057327,70769.0,70762.0,0.01610957]
[1773266689014,0.00037124,70774.0,70762.0,0.01610957]
[1773266689216,0.00037124,70774.0,70763.0,0.07065839]
[1773266689402,0.00037124,70774.0,70764.0,0.01610957]
[1773266692019,0.00037124,70774.0,70765.0,0.07065639]
[1773266694213,0.00037124,70774.0,70764.0,0.07065698]
[1773266694875,0.00037124,70774.0,70765.0,0.001]
[1773266696108,0.00037124,70774.0,70764.0,0.07065698]
[1773266696525,0.00037124,70774.0,70763.0,0.07065839]
[1773266696926,0.00037124,70774.0,70764.0,0.001]
[1773266698172,0.00037124,70774.0,70763.0,0.07065839]
[1773266699223,0.00037124,70774.0,70763.0,0.08718377]
[1773266701585,0.0708693,70773.0,70752.0,0.07066931]
[1773266701745,0.0708693,70773.0,70751.0,0.00055326]
[1773266701746,0.01797955,70772.0,70751.0,0.00055326]
[1773266701956,0.01797955,70772.0,70749.0,0.00144]
[1773266702364,0.01653955,70771.0,70749.0,0.01796538]
[1773266703752,0.0706514,70770.0,70752.0,0.001]
[1773266703963,0.00037124,70774.0,70761.0,0.01652538]
[1773266704162,0.00037124,70774.0,70748.0,0.07067337]
[1773266704163,0.01653955,70770.0,70748.0,0.07067337]
[1773266704389,0.01653955,70768.0,70743.0,2.94e-06]
[1773266704606,0.01653955,70759.0,70738.0,0.07212329]
[1773266704839,0.03264889,70769.0,70738.0,0.07212329]
[1773266704840,0.03264889,70769.0,70740.0,0.04200608]
[1773266704973,0.01797955,70768.0,70741.0,0.01652538]
[1773266705671,0.01653955,70768.0,70741.0,0.01652538]
[1773266705877,0.01653955,70765.0,70743.0,0.01652538]
[1773266706074,0.01653955,70765.0,70744.0,0.00144]
[1773266706866,0.01653955,70765.0,70745.0,0.01652538]
[1773266707067,0.01653955,70765.0,70747.0,0.01652538]
[1773266707845,0.07065739,70764.0,70748.0,0.07067337]
[1773266707985,0.01653955,70763.0,70747.0,0.0871996]
[1773266708385,0.01653955,70763.0,70747.0,0.01652538]
[1773266708592,0.01653955,70763.0,70745.0,0.07067575]
[1773266709326,0.01653955,70763.0,70744.0,0.07211544]
[1773266710011,0.01653955,70761.0,70744.0,0.07211544]
[1773266710209,0.01653955,70759.0,70739.0,0.07088196]
[1773266710449,0.01653955,70759.0,70740.0,0.00144]
[1773266710761,0.01653955,70759.0,70741.0,0.01652538]
[1773266711327,0.01797955,70758.0,70741.0,0.01652538]
[1773266713844,0.01797955,70758.0,70740.0,0.00144]
[1773266713845,0.01653955,70756.0,70740.0,0.00144]
[1773266715242,0.01653955,70756.0,70740.0,0.00164]
[1773266715839,0.01653955,70754.0,70740.0,0.00164]
[1773266716044,0.01653955,70754.0,70738.0,0.00144]
[1773266716844,0.08719794,70763.0,70741.0,0.01652538]
[1773266717038,0.03322216,70769.0,70741.0,0.01652538]
[1773266717250,0.00144,70763.0,70741.0,0.01652538]
[1773266717459,0.01653955,70762.0,70741.0,0.01652538]
[1773266717882,0.07066039,70761.0,70742.0,0.07067937]
[1773266718080,0.01797955,70760.0,70743.0,0.00144]
[1773266719779,0.01797955,70760.0,70744.0,0.00144]
[1773266720200,0.01797955,70760.0,70745.0,0.07067637]
[1773266720406,0.01797955,70760.0,70746.0,0.01652324]
[1773266721842,0.01653955,70760.0,70746.0,0.01652324]
[1773266722400,0.01653955,70760.0,70747.0,0.07067437]
[1773266725100,0.01653955,70760.0,70746.0,0.08719851]
[1773266725310,0.01653955,70760.0,70746.0,0.07067527]
[1773266729816,0.00022001,70763.0,70750.0,0.04196253]
[1773266730011,0.00166001,70763.0,70751.0,0.01652324]
[1773266730237,0.0002063,70764.0,70751.0,0.01652324]
[1773266730412,0.07086954,70772.0,70750.0,0.04196253]
[1773266730413,0.07086954,70772.0,70760.0,0.01652324]
[1773266730414,0.00022001,70772.0,70760.0,0.01652324]
[1773266730615,0.00022001,70772.0,70762.0,0.01652324]
[1773266731503,0.00022001,70772.0,70764.0,0.01652324]
[1773266733425,0.00022001,70772.0,70764.0,0.08718029]
[1773266734065,0.00022001,70772.0,70761.0,0.00144]
[1773266734264,0.00022001,70772.0,70750.0,0.00144]
[1773266734265,0.01665316,70770.0,70750.0,0.00144]
[1773266734469,0.01665316,70768.0,70750.0,0.00144]
[1773266735095,0.01665316,70768.0,70761.0,0.001]
[1773266735455,0.01665316,70766.0,70751.0,0.07067037]
[1773266737001,0.01665316,70766.0,70751.0,0.07102363]
[1773266739715,0.07065432,70768.0,70753.0,0.07066838]
[1773266739914,0.01665316,70773.0,70753.0,0.07066838]
[1773266740236,0.00144,70769.0,70754.0,0.01752926]
[1773266742440,0.00144,70769.0,70755.0,0.07066638]
[1773266742660,0.00144,70769.0,70756.0,0.01643382]
[1773266743725,0.00144,70769.0,70757.0,0.00144]
[1773266744262,0.0154099,70768.0,70757.0,0.00144]
[1773266744417,0.0154099,70768.0,70758.0,0.07066338]
[1773266744614,0.0154099,70768.0,70757.0,0.07210426]
[1773266745418,0.0154099,70765.0,70745.0,0.00144]
[1773266745722,0.03045932,70766.0,70745.0,0.00144]
[1773266745723,0.0154099,70759.0,70745.0,0.00144]
[1773266745953,0.0154099,70759.0,70743.0,0.07087826]
[1773266746117,0.0154099,70759.0,70744.0,0.00144]
[1773266746471,0.0154099,70759.0,70743.0,0.07087826]
[1773266746669,0.0154099,70759.0,70745.0,0.00144]
[1773266748614,0.0154099,70759.0,70746.0,0.07067537]
[1773266749519,0.0154099,70759.0,70741.0,0.07704216]
[1773266749520,0.0154099,70758.0,70734.0,0.00658696]
[1773266749724,0.0154099,70749.0,70734.0,0.00035335]
[1773266750022,0.0154099,70749.0,70737.0,0.07088415]
[1773266768308,0.07066575,70756.0,70737.0,0.07088415]
[1773266768309,0.00144,70752.0,70738.0,0.00675254]
[1773266768507,0.00144,70752.0,70739.0,0.00533571]
[1773266768685,0.00144,70752.0,70740.0,0.00141678]
[1773266770009,0.00144,70752.0,70741.0,0.00144]
[1773266770883,0.00149767,70752.0,70742.0,0.07067937]
[1773266778030,0.14239074,70751.0,70730.0,0.00164]
[1773266778248,0.11280954,70749.0,70732.0,0.07088915]
[1773266778465,0.01595115,70747.0,70732.0,0.07088915]
[1773266778672,0.01595115,70746.0,70732.0,0.07088915]
[1773266778908,0.01595115,70744.0,70732.0,0.0002]
[1773266779273,0.01595115,70744.0,70731.0,0.0002]
[1773266779274,0.01595115,70743.0,70731.0,0.0002]
[1773266779486,0.01595115,70743.0,70729.0,0.07089225]
[1773266780698,0.01595115,70743.0,70729.0,0.07233225]
[1773266785118,0.01531537,70742.0,70729.0,0.00164]
[1773266785316,0.01531537,70742.0,70728.0,0.0002]
[1773266785925,0.01531537,70742.0,70729.0,0.0002]
[1773266786759,0.07068036,70741.0,70729.0,0.0002]
[1773266786951,0.01531537,70740.0,70729.0,0.0002]
[1773266787454,0.04197242,70740.0,70725.0,0.0004144]
[1773266787655,0.01531537,70739.0,70721.0,0.0002]
[1773266788214,0.07,70734.0,70721.0,0.0002]
[1773266788440,0.01531537,70733.0,70721.0,0.0002]
[1773266788765,0.01531537,70731.0,70716.0,0.00035343]
[1773266788969,0.01531537,70731.0,70716.0,0.07105832]
[1773266789166,0.00144,70738.0,70721.0,0.00443412]
[1773266789308,0.00144,70738.0,70720.0,0.04197242]
[1773266789309,0.11280954,70745.0,70723.0,0.00443412]
[1773266789310,0.00144,70743.0,70723.0,0.00443412]
[1773266789523,0.00144,70743.0,70722.0,0.00144]
[1773266789524,0.14112126,70746.0,70731.0,0.00443412]
[1773266789788,0.00022001,70749.0,70733.0,0.00443412]
[1773266790475,0.01553538,70749.0,70733.0,0.00443412]
[1773266790885,0.01553538,70749.0,70734.0,0.07068736]
[1773266791183,0.01531537,70747.0,70734.0,0.07068736]
[1773266791362,0.00022001,70749.0,70735.0,0.00434753]
[1773266791559,0.00022001,70749.0,70734.0,0.07068736]
[1773266791560,0.00179335,70751.0,70740.0,0.04197242]
[1773266791561,0.00035335,70751.0,70740.0,0.04197242]
[1773266791758,0.0002144,70754.0,70741.0,0.00899561]
[1773266791929,0.0002144,70754.0,70741.0,0.00905328]
[1773266792774,0.0002144,70754.0,70743.0,0.00751341]
[1773266792975,0.00022001,70757.0,70743.0,0.00751341]
[1773266794763,0.00022001,70757.0,70743.0,0.07067737]
[1773266795079,0.01531537,70756.0,70743.0,0.07067737]
[1773266795281,0.01531537,70753.0,70743.0,0.07067737]
[1773266796974,0.00022001,70754.0,70743.0,0.07067737]
[1773266797194,0.00043321,70759.0,70744.0,0.00733186]
[1773266797394,0.00022001,70764.0,70744.0,0.00733186]
[1773266798046,0.00022001,70767.0,70744.0,0.00733186]
[1773266798172,0.00022001,70769.0,70751.0,0.00728998]
[1773266798379,0.00022001,70769.0,70753.0,0.00728998]
[1773266798571,0.00022001,70769.0,70752.0,0.00144]
[1773266798572,0.00022001,70769.0,70755.0,0.00728998]
[1773266798796,0.00022001,70769.0,70756.0,0.00872998]
[1773266798977,0.00022001,70769.0,70757.0,0.07066438]
[1773266799177,0.01531537,70768.0,70757.0,0.07066438]
[1773266802630,0.01531537,70768.0,70756.0,0.00144]
[1773266802631,0.01534329,70766.0,70755.0,0.00144]
[1773266802826,0.01534329,70764.0,70755.0,0.00144]
[1773266803007,0.01534329,70762.0,70755.0,0.00144]
[1773266803202,0.01534329,70762.0,70753.0,0.07066751]
[1773266803408,0.01534329,70762.0,70754.0,0.00144]
[1773266807135,0.01534329,70762.0,70750.0,0.00144]
[1773266807353,0.01534329,70762.0,70750.0,0.07211134]
[1773266808131,0.01534329,70762.0,70751.0,0.00144]
[1773266808575,0.01534329,70762.0,70746.0,0.07067537]
[1773266808775,0.01534329,70762.0,70747.0,0.00144]
[1773266809576,0.0155633,70762.0,70747.0,0.00144]
[1773266810887,0.0155633,70762.0,70748.0,0.00144]
[1773266811401,0.0155633,70762.0,70746.0,0.07067537]
[1773266811569,0.0155633,70762.0,70747.0,0.00144]
[1773266811960,0.0155633,70762.0,70748.0,0.00144]
[1773266812388,0.0155633,70762.0,70746.0,0.07067537]
[1773266812586,0.0155633,70762.0,70747.0,0.00144]
[1773266812806,0.07088034,70762.0,70743.0,0.00766454]
[1773266812990,0.01517755,70761.0,70745.0,0.00144]
[1773266813377,0.01517755,70761.0,70746.0,0.00144]
[1773266815844,0.01517755,70761.0,70747.0,0.07067437]
[1773266816635,0.00141694,70760.0,70747.0,0.07067437]
[1773266816987,0.01517755,70759.0,70747.0,0.07067437]
[1773266818865,0.00141694,70758.0,70747.0,0.07067437]
[1773266820857,0.01517755,70759.0,70747.0,0.07067437]
[1773266821035,0.00041581,70770.0,70750.0,0.00723523]
[1773266821241,0.00041581,70770.0,70760.0,0.0419708]
[1773266821458,0.00041581,70770.0,70757.0,0.00867523]
[1773266822846,0.00041581,70770.0,70758.0,0.07066338]
[1773266824779,0.00041581,70770.0,70758.0,0.07166338]
[1773266826367,0.02900909,70768.0,70752.0,0.07066923]
[1773266826569,0.02900909,70768.0,70753.0,0.00144]
[1773266826570,0.01517755,70767.0,70753.0,0.00144]
[1773266826768,0.01517755,70767.0,70752.0,0.07066923]
[1773266827076,0.01517755,70767.0,70754.0,0.07066738]
[1773266827469,0.01517755,70767.0,70755.0,0.00144]
[1773266827860,0.01517755,70767.0,70754.0,0.07066738]
[1773266828061,0.01517755,70767.0,70755.0,0.00144]
[1773266828259,0.01517755,70766.0,70753.0,0.00144]
[1773266828480,0.01517755,70762.0,70753.0,0.00144]
[1773266828698,0.01517755,70762.0,70751.0,0.0710232]
[1773266828878,0.01517755,70762.0,70752.0,0.00144]
[1773266829294,0.01517755,70762.0,70753.0,0.07066838]
[1773266830507,0.01517755,70762.0,70752.0,0.07210921]
[1773266831220,0.01517755,70762.0,70752.0,0.07066921]
[1773266831416,0.01517755,70762.0,70753.0,0.00144]
[1773266831623,0.07209452,70767.0,70745.0,0.00144]
[1773266831624,0.01517755,70765.0,70745.0,0.00144]
[1773266831830,0.01517755,70765.0,70740.0,0.07068102]
[1773266831831,0.01517755,70765.0,70743.0,0.00144]
[1773266832987,0.21180239,70766.0,70741.0,0.07093785]
[1773266832988,0.00022001,70762.0,70741.0,0.07093785]
[1773266833145,0.01517755,70761.0,70741.0,0.07093785]
[1773266833462,0.01517755,70757.0,70742.0,0.0002]
[1773266833664,0.01661755,70757.0,70742.0,0.0002]
[1773266833866,0.01661755,70757.0,70742.0,0.07087885]
[1773266835204,0.00144,70757.0,70742.0,0.07087885]
[1773266835372,0.07,70758.0,70744.0,0.07067737]
[1773266835988,0.07,70758.0,70744.0,0.0750136]
[1773266837468,0.08517755,70758.0,70744.0,0.0750136]
[1773266839817,0.07209859,70763.0,70744.0,0.0750136]
[1773266839972,0.01534653,70769.0,70745.0,0.01502636]
[1773266841271,0.01534653,70769.0,70747.0,0.01502636]
[1773266841683,0.01534653,70769.0,70749.0,0.01502636]
[1773266843599,0.07100621,70769.0,70749.0,0.01502636]
[1773266843806,0.01499327,70768.0,70751.0,0.01502636]
[1773266844332,0.01499327,70767.0,70750.0,0.07067137]
[1773266845299,0.01499327,70767.0,70742.0,0.07087892]
[1773266845536,0.01499327,70767.0,70742.0,0.0002]
[1773266845734,0.07065539,70766.0,70742.0,0.07087936]
[1773266845904,0.01643327,70765.0,70742.0,0.0002]
[1773266847091,0.01643327,70765.0,70742.0,0.00164]
[1773266847618,0.01643327,70765.0,70742.0,0.07231905]
[1773266847834,0.01499327,70763.0,70742.0,0.07231905]
[1773266848746,0.01499327,70763.0,70744.0,0.0002]
[1773266849264,0.01599327,70763.0,70744.0,0.0002]
[1773266849854,0.07065939,70762.0,70744.0,0.0002]
[1773266850070,0.01499327,70761.0,70744.0,0.0002]
[1773266850229,0.01499327,70761.0,70744.0,0.07087708]
[1773266850644,0.01499327,70761.0,70744.0,0.0002]
[1773266851297,0.01599327,70761.0,70744.0,0.0002]
[1773266851498,0.01499327,70761.0,70744.0,0.0002]
[1773266851865,0.01599327,70761.0,70744.0,0.0002]
[1773266852072,0.01599327,70761.0,70744.0,0.00164]
[1773266852073,0.01499327,70759.0,70744.0,0.00164]
[1773266852273,0.07066139,70760.0,70744.0,0.00164]
[1773266852274,0.01499327,70757.0,70744.0,0.00164]
[1773266853481,0.01534247,70757.0,70744.0,0.00164]
[1773266854230,0.07101452,70757.0,70744.0,0.00164]
[1773266854522,0.01499327,70756.0,70744.0,0.00164]
[1773266855477,0.01534247,70756.0,70744.0,0.00164]
[1773266856892,0.07,70752.0,70744.0,0.00164]
[1773266857508,0.070209,70752.0,70744.0,0.00164]
[1773266859505,0.08520227,70752.0,70744.0,0.00164]
[1773266860578,0.070209,70752.0,70744.0,0.07231698]
[1773266862177,0.070209,70752.0,70744.0,0.00164]
[1773266864264,0.070209,70752.0,70745.0,0.00144]
[1773266865485,0.01559811,70751.0,70741.0,0.00025767]
[1773266865666,0.01580711,70751.0,70741.0,0.00025767]
[1773266865869,0.01580711,70751.0,70744.0,0.0002]
[1773266868572,0.0001402,70755.0,70744.0,0.0002]
[1773266868774,0.0001402,70755.0,70745.0,0.01623699]
[1773266869810,0.0001402,70755.0,70744.0,0.07087714]
[1773266874206,0.00036021,70755.0,70744.0,0.07087714]
[1773266874735,0.00036021,70755.0,70744.0,0.0002]
[1773266874938,0.01577982,70754.0,70744.0,0.0002]
[1773266879101,0.01577982,70753.0,70744.0,0.0002]
[1773266879269,0.01577982,70753.0,70735.0,0.07088622]
[1773266879270,0.01577982,70750.0,70735.0,0.00164]
[1773266879480,0.01577982,70748.0,70735.0,0.00164]
[1773266879837,0.01577982,70747.0,70735.0,0.00164]
[1773266880002,0.07067537,70746.0,70735.0,0.00164]
[1773266880204,0.01577982,70745.0,70735.0,0.00164]